[Event "Titled Tuesday Blitz March 01 Early 2022"]
[White "Wagner, Dennis"]
[Black "Zavgorodniy, Sergiy"]
[WhiteFideId "24650684"]
[BlackFideId "14110148"]
[WhiteElo "2355"]
[BlackElo "2420"]
[Result "0-1"]
[Round "03"]
[TimeControl "180+1"]
[Date "2022.03.01"]
[WhiteClock "0:00:01"]
[BlackClock "0:00:21"]

1. e4 {[%clk 0:03:00]}  e5 {[%clk 0:02:59]} 2. Nf3 {[%clk 0:03:00]}  d6 {[%clk 0:02:59]} 3. d4 {[%clk 0:03:00]}  exd4 {[%clk 0:03:00]} 4. Nxd4 {[%clk 0:03:01]}  Nf6 {[%clk 0:03:00]} 5. Nc3 {[%clk 0:03:00]}  Be7 {[%clk 0:03:00]} 6. g3 {[%clk 0:02:53]}  Bg4 {[%clk 0:03:00]} 7. f3 {[%clk 0:02:48]}  Bd7 {[%clk 0:03:00]} 8. Bg2 {[%clk 0:02:48]}  c5 {[%clk 0:02:58]} 9. Nde2 {[%clk 0:02:48]}  Bc6 {[%clk 0:02:57]} 10. Nf4 {[%clk 0:02:43]}  b5 {[%clk 0:02:54]} 11. O-O {[%clk 0:02:40]}  Nbd7 {[%clk 0:02:50]} 12. Be3 {[%clk 0:02:38]}  O-O {[%clk 0:02:46]} 13. Qd2 {[%clk 0:02:38]}  Nb6 {[%clk 0:02:44]} 14. b3 {[%clk 0:02:37]}  b4 {[%clk 0:02:44]} 15. Nce2 {[%clk 0:02:34]}  d5 {[%clk 0:02:39]} 16. e5 {[%clk 0:02:24]}  Ne8 {[%clk 0:02:31]} 17. Nd3 {[%clk 0:02:19]}  d4 {[%clk 0:02:27]} 18. Bf2 {[%clk 0:02:19]}  Nc7 {[%clk 0:02:21]} 19. Rae1 {[%clk 0:01:51]}  Qd7 {[%clk 0:02:14]} 20. Nef4 {[%clk 0:01:33]}  Ne6 {[%clk 0:02:00]} 21. Nh5 {[%clk 0:01:25]}  c4 {[%clk 0:01:32]} 22. bxc4 {[%clk 0:01:08]}  Nxc4 {[%clk 0:01:32]} 23. Qd1 {[%clk 0:01:08]}  Rac8 {[%clk 0:01:24]} 24. f4 {[%clk 0:00:56]}  Bxg2 {[%clk 0:01:23]} 25. Kxg2 {[%clk 0:00:57]}  Qd5+ {[%clk 0:01:19]} 26. Kh3 {[%clk 0:00:56]}  f5 {[%clk 0:01:12]} 27. exf6 {[%clk 0:00:46]}  Bxf6 {[%clk 0:01:08]} 28. Qg4 {[%clk 0:00:45]}  Rce8 {[%clk 0:01:01]} 29. Nxb4 {[%clk 0:00:37]}  Qd7 {[%clk 0:00:56]} 30. Bg1 {[%clk 0:00:21]}  Kh8 {[%clk 0:00:56]} 31. Nxf6 {[%clk 0:00:18]}  Rxf6 {[%clk 0:00:56]} 32. f5 {[%clk 0:00:19]}  Qb7 {[%clk 0:00:48]} 33. fxe6 {[%clk 0:00:16]}  Rh6+ {[%clk 0:00:47]} 34. Qh4 {[%clk 0:00:15]}  Rxh4+ {[%clk 0:00:47]} 35. Kxh4 {[%clk 0:00:14]}  Qxb4 {[%clk 0:00:47]} 36. e7 {[%clk 0:00:14]}  h6 {[%clk 0:00:46]} 37. Bxd4 {[%clk 0:00:08]}  Kg8 {[%clk 0:00:43]} 38. c3 {[%clk 0:00:07]}  Qd6 {[%clk 0:00:42]} 39. Rf5 {[%clk 0:00:06]}  Rxe7 {[%clk 0:00:41]} 40. Ref1 {[%clk 0:00:07]}  Ne3 {[%clk 0:00:38]} 41. Rf8+ {[%clk 0:00:06]}  Kh7 {[%clk 0:00:38]} 42. R1f3 {[%clk 0:00:04]}  Nc2 {[%clk 0:00:26]} 43. Bf2 {[%clk 0:00:02]}  Qe6 {[%clk 0:00:24]} 44. g4 {[%clk 0:00:02]}  Ne1 {[%clk 0:00:21]} 45. Re3 {[%clk 0:00:01]}  Ng2+ {[%clk 0:00:21]} 46. Kg3 {[%clk 0:00:01]}  Nxe3 {[%clk 0:00:21]} 0-1


[Site "https://www.chess.com"]

[Event "Titled Tuesday Blitz March 01 Early 2022"]
[White "Wahedi, Ahmad Siar"]
[Black "Bashirli, Saadat"]
[WhiteFideId "4651260"]
[BlackFideId "13429990"]
[WhiteElo "2359"]
[BlackElo "1173"]
[Result "1-0"]
[Round "03"]
[TimeControl "180+1"]
[Date "2022.03.01"]
[WhiteClock "0:00:15"]
[BlackClock "0:00:07"]

1. c4 {[%clk 0:03:00]}  e6 {[%clk 0:02:59]} 2. e4 {[%clk 0:03:00]}  Be7 {[%clk 0:02:47]} 3. Nc3 {[%clk 0:02:58]}  c6 {[%clk 0:02:42]} 4. g3 {[%clk 0:02:51]}  d5 {[%clk 0:02:36]} 5. exd5 {[%clk 0:02:48]}  exd5 {[%clk 0:02:37]} 6. cxd5 {[%clk 0:02:47]}  cxd5 {[%clk 0:02:38]} 7. Bg2 {[%clk 0:02:48]}  Nf6 {[%clk 0:02:35]} 8. d4 {[%clk 0:02:46]}  Nc6 {[%clk 0:02:34]} 9. Nge2 {[%clk 0:02:45]}  Be6 {[%clk 0:02:34]} 10. O-O {[%clk 0:02:44]}  O-O {[%clk 0:02:32]} 11. h3 {[%clk 0:02:44]}  Bb4 {[%clk 0:02:22]} 12. Nf4 {[%clk 0:02:43]}  Bxc3 {[%clk 0:02:18]} 13. bxc3 {[%clk 0:02:42]}  Qd7 {[%clk 0:02:18]} 14. Kh2 {[%clk 0:02:39]}  Rfe8 {[%clk 0:02:13]} 15. Rb1 {[%clk 0:02:38]}  b6 {[%clk 0:02:11]} 16. Be3 {[%clk 0:02:28]}  Rac8 {[%clk 0:02:06]} 17. Rc1 {[%clk 0:01:58]}  Na5 {[%clk 0:02:02]} 18. Nd3 {[%clk 0:01:56]}  Nc4 {[%clk 0:02:01]} 19. Ne5 {[%clk 0:01:56]}  Qc7 {[%clk 0:01:48]} 20. Bf4 {[%clk 0:01:53]}  Nxe5 {[%clk 0:01:46]} 21. Bxe5 {[%clk 0:01:50]}  Qe7 {[%clk 0:01:42]} 22. Re1 {[%clk 0:01:43]}  Nd7 {[%clk 0:01:33]} 23. Bf4 {[%clk 0:01:38]}  Qa3 {[%clk 0:01:29]} 24. Qd2 {[%clk 0:01:27]}  Nf6 {[%clk 0:01:23]} 25. f3 {[%clk 0:01:18]}  Rc4 {[%clk 0:01:19]} 26. Bf1 {[%clk 0:01:13]}  Rcc8 {[%clk 0:01:15]} 27. g4 {[%clk 0:01:10]}  Nd7 {[%clk 0:00:51]} 28. Bd3 {[%clk 0:01:09]}  h6 {[%clk 0:00:48]} 29. Bxh6 {[%clk 0:00:39]}  Qd6+ {[%clk 0:00:17]} 30. Bf4 {[%clk 0:00:38]}  Qc6 {[%clk 0:00:17]} 31. Bb1 {[%clk 0:00:35]}  Nf6 {[%clk 0:00:16]} 32. Be5 {[%clk 0:00:34]}  Nd7 {[%clk 0:00:14]} 33. Qd3 {[%clk 0:00:31]}  Nxe5 {[%clk 0:00:13]} 34. Qh7+ {[%clk 0:00:29]}  Kf8 {[%clk 0:00:14]} 35. Rxe5 {[%clk 0:00:29]}  f6 {[%clk 0:00:11]} 36. Re2 {[%clk 0:00:25]}  Rc7 {[%clk 0:00:02]} 37. Rce1 {[%clk 0:00:24]}  Ke7 {[%clk 0:00:01]} 38. Rxe6+ {[%clk 0:00:19]}  Qxe6 {[%clk 0:00:02]} 39. Rxe6+ {[%clk 0:00:19]}  Kxe6 {[%clk 0:00:03]} 40. Bf5+ {[%clk 0:00:18]}  Kd6 {[%clk 0:00:02]} 41. Bg6 {[%clk 0:00:18]}  Re2+ {[%clk 0:00:03]} 42. Kg3 {[%clk 0:00:19]}  Rxc3 {[%clk 0:00:03]} 43. Qxg7 {[%clk 0:00:18]}  Ree3 {[%clk 0:00:03]} 44. Qxf6+ {[%clk 0:00:18]}  Kd7 {[%clk 0:00:03]} 45. h4 {[%clk 0:00:17]}  Rxf3+ {[%clk 0:00:02]} 46. Qxf3 {[%clk 0:00:16]}  Rxf3+ {[%clk 0:00:03]} 47. Kxf3 {[%clk 0:00:17]}  b5 {[%clk 0:00:04]} 48. h5 {[%clk 0:00:16]}  a5 {[%clk 0:00:05]} 49. h6 {[%clk 0:00:16]}  b4 {[%clk 0:00:06]} 50. Bc2 {[%clk 0:00:15]}  a4 {[%clk 0:00:07]} 51. Bxa4+ {[%clk 0:00:15]} 1-0


[Site "https://www.chess.com"]

[Event "Titled Tuesday Blitz March 01 Early 2022"]
[White "Winkels, Marcel"]
[Black "Yanayt, Eugene"]
[WhiteFideId "1003887"]
[BlackFideId "2020165"]
[WhiteElo "1900"]
[BlackElo "2046"]
[Result "0-1"]
[Round "03"]
[TimeControl "180+1"]
[Date "2022.03.01"]
[WhiteClock "0:00:07"]
[BlackClock "0:00:01"]

1. b3 {[%clk 0:03:00]}  d6 {[%clk 0:02:58]} 2. Bb2 {[%clk 0:03:01]}  e5 {[%clk 0:02:58]} 3. e3 {[%clk 0:03:01]}  g6 {[%clk 0:02:58]} 4. d4 {[%clk 0:03:01]}  Bg7 {[%clk 0:02:57]} 5. Nf3 {[%clk 0:03:01]}  e4 {[%clk 0:02:57]} 6. Nfd2 {[%clk 0:02:59]}  f5 {[%clk 0:02:56]} 7. Be2 {[%clk 0:02:58]}  Nc6 {[%clk 0:02:55]} 8. a3 {[%clk 0:02:54]}  Nh6 {[%clk 0:02:52]} 9. O-O {[%clk 0:02:46]}  O-O {[%clk 0:02:50]} 10. c4 {[%clk 0:02:42]}  Qh4 {[%clk 0:02:39]} 11. Nc3 {[%clk 0:02:30]}  Bd7 {[%clk 0:02:36]} 12. Nd5 {[%clk 0:02:27]}  Rac8 {[%clk 0:02:33]} 13. b4 {[%clk 0:02:26]}  Kh8 {[%clk 0:02:12]} 14. b5 {[%clk 0:02:24]}  Nd8 {[%clk 0:02:07]} 15. a4 {[%clk 0:02:05]}  Ne6 {[%clk 0:02:03]} 16. Qc2 {[%clk 0:01:57]}  c6 {[%clk 0:01:38]} 17. bxc6 {[%clk 0:01:43]}  bxc6 {[%clk 0:01:36]} 18. Nc3 {[%clk 0:01:30]}  Ng5 {[%clk 0:01:34]} 19. Ba3 {[%clk 0:01:22]}  Nhf7 {[%clk 0:01:14]} 20. Rab1 {[%clk 0:01:04]}  Rb8 {[%clk 0:01:05]} 21. Rxb8 {[%clk 0:01:02]}  Rxb8 {[%clk 0:01:04]} 22. Rb1 {[%clk 0:01:01]}  Rxb1+ {[%clk 0:01:03]} 23. Qxb1 {[%clk 0:00:59]}  h6 {[%clk 0:00:33]} 24. Qb8+ {[%clk 0:00:55]}  Kh7 {[%clk 0:00:32]} 25. Bxd6 {[%clk 0:00:54]}  Bxd4 {[%clk 0:00:12]} 26. Bg3 {[%clk 0:00:43]}  Nh3+ {[%clk 0:00:10]} 27. gxh3 {[%clk 0:00:37]}  Qxh3 {[%clk 0:00:07]} 28. Bf1 {[%clk 0:00:36]}  Qh5 {[%clk 0:00:06]} 29. exd4 {[%clk 0:00:34]}  Qg5 {[%clk 0:00:05]} 30. Qf4 {[%clk 0:00:31]}  Qe7 {[%clk 0:00:04]} 31. Qe3 {[%clk 0:00:30]}  g5 {[%clk 0:00:04]} 32. f4 {[%clk 0:00:27]}  Qf6 {[%clk 0:00:03]} 33. Nb3 {[%clk 0:00:25]}  Nd8 {[%clk 0:00:02]} 34. Nc5 {[%clk 0:00:24]}  Bc8 {[%clk 0:00:02]} 35. d5 {[%clk 0:00:23]}  cxd5 {[%clk 0:00:02]} 36. Nxd5 {[%clk 0:00:22]}  Qb2 {[%clk 0:00:02]} 37. Qc3 {[%clk 0:00:15]}  Qa2 {[%clk 0:00:01]} 38. Nf6+ {[%clk 0:00:14]}  Kg6 {[%clk 0:00:01]} 39. Ne8 {[%clk 0:00:13]}  Kf7 {[%clk 0:00:01]} 40. Qf6+ {[%clk 0:00:11]}  Kxe8 {[%clk 0:00:01]} 41. fxg5 {[%clk 0:00:09]}  hxg5 {[%clk 0:00:01]} 42. Qe5+ {[%clk 0:00:08]}  Kf8 {[%clk 0:00:01]} 43. Qf6+ {[%clk 0:00:07]}  Ke8 {[%clk 0:00:01]} 0-1


[Site "https://www.chess.com"]

[Event "Titled Tuesday Blitz March 01 Early 2022"]
[White "Yurtseven, Melih"]
[Black "Gaehwiler, Gabriel"]
[WhiteFideId "6312160"]
[BlackFideId "1314530"]
[WhiteElo "2160"]
[BlackElo "2383"]
[Result "1-0"]
[Round "03"]
[TimeControl "180+1"]
[Date "2022.03.01"]
[WhiteClock "0:00:12"]
[BlackClock "0:00:03"]

1. Nf3 {[%clk 0:03:00]}  Nf6 {[%clk 0:03:00]} 2. g3 {[%clk 0:03:00]}  b6 {[%clk 0:03:00]} 3. Bg2 {[%clk 0:03:00]}  Bb7 {[%clk 0:03:01]} 4. O-O {[%clk 0:03:01]}  g6 {[%clk 0:03:01]} 5. d3 {[%clk 0:03:01]}  Bg7 {[%clk 0:03:02]} 6. e4 {[%clk 0:03:01]}  O-O {[%clk 0:03:01]} 7. e5 {[%clk 0:02:58]}  Ne8 {[%clk 0:02:54]} 8. Re1 {[%clk 0:02:47]}  c5 {[%clk 0:02:42]} 9. d4 {[%clk 0:02:48]}  cxd4 {[%clk 0:02:42]} 10. Qxd4 {[%clk 0:02:48]}  Bxf3 {[%clk 0:02:37]} 11. Bxf3 {[%clk 0:02:47]}  Nc6 {[%clk 0:02:37]} 12. Qf4 {[%clk 0:02:38]}  Qb8 {[%clk 0:02:03]} 13. Nc3 {[%clk 0:02:18]}  Nc7 {[%clk 0:01:45]} 14. Qh4 {[%clk 0:01:59]}  Nxe5 {[%clk 0:01:40]} 15. Bg2 {[%clk 0:01:15]}  Ne6 {[%clk 0:01:12]} 16. Nd5 {[%clk 0:01:10]}  Nd4 {[%clk 0:01:00]} 17. Nxe7+ {[%clk 0:00:27]}  Kh8 {[%clk 0:01:00]} 18. Qe4 {[%clk 0:00:27]}  Nec6 {[%clk 0:00:42]} 19. Nxc6 {[%clk 0:00:26]}  dxc6 {[%clk 0:00:34]} 20. Bf4 {[%clk 0:00:26]}  Qd8 {[%clk 0:00:33]} 21. Be5 {[%clk 0:00:26]}  Re8 {[%clk 0:00:30]} 22. Qxd4 {[%clk 0:00:14]}  Rxe5 {[%clk 0:00:21]} 23. Qxd8+ {[%clk 0:00:09]}  Rxd8 {[%clk 0:00:22]} 24. c3 {[%clk 0:00:06]}  c5 {[%clk 0:00:21]} 25. Red1 {[%clk 0:00:05]}  Bf6 {[%clk 0:00:18]} 26. Bf3 {[%clk 0:00:05]}  Kg7 {[%clk 0:00:18]} 27. Rxd8 {[%clk 0:00:05]}  Bxd8 {[%clk 0:00:18]} 28. Rd1 {[%clk 0:00:06]}  Bg5 {[%clk 0:00:15]} 29. Kg2 {[%clk 0:00:06]}  h5 {[%clk 0:00:15]} 30. Ba8 {[%clk 0:00:06]}  Re7 {[%clk 0:00:15]} 31. Rd5 {[%clk 0:00:05]}  Bf6 {[%clk 0:00:15]} 32. Rd2 {[%clk 0:00:04]}  Rc7 {[%clk 0:00:15]} 33. Bf3 {[%clk 0:00:05]}  Be5 {[%clk 0:00:15]} 34. h4 {[%clk 0:00:05]}  Kf6 {[%clk 0:00:14]} 35. Rd5 {[%clk 0:00:05]}  Re7 {[%clk 0:00:14]} 36. Rd8 {[%clk 0:00:06]}  Kg7 {[%clk 0:00:12]} 37. Ra8 {[%clk 0:00:06]}  Rc7 {[%clk 0:00:12]} 38. Bd5 {[%clk 0:00:06]}  Rd7 {[%clk 0:00:11]} 39. Bc4 {[%clk 0:00:05]}  Rc7 {[%clk 0:00:08]} 40. Kf3 {[%clk 0:00:04]}  Bf6 {[%clk 0:00:08]} 41. Re8 {[%clk 0:00:04]}  Re7 {[%clk 0:00:07]} 42. Rxe7 {[%clk 0:00:04]}  Bxe7 {[%clk 0:00:08]} 43. Ke4 {[%clk 0:00:04]}  g5 {[%clk 0:00:05]} 44. hxg5 {[%clk 0:00:05]}  Bxg5 {[%clk 0:00:06]} 45. f4 {[%clk 0:00:06]}  Bd8 {[%clk 0:00:05]} 46. Kf5 {[%clk 0:00:07]}  Bc7 {[%clk 0:00:05]} 47. Be2 {[%clk 0:00:07]}  Kh6 {[%clk 0:00:04]} 48. Kf6 {[%clk 0:00:08]}  h4 {[%clk 0:00:04]} 49. gxh4 {[%clk 0:00:09]}  Bxf4 {[%clk 0:00:04]} 50. Kxf7 {[%clk 0:00:09]}  Bc1 {[%clk 0:00:05]} 51. b3 {[%clk 0:00:09]}  Bd2 {[%clk 0:00:06]} 52. c4 {[%clk 0:00:10]}  Be1 {[%clk 0:00:06]} 53. h5 {[%clk 0:00:10]}  a5 {[%clk 0:00:04]} 54. Ke6 {[%clk 0:00:11]}  Bb4 {[%clk 0:00:05]} 55. Kd6 {[%clk 0:00:11]}  Kg5 {[%clk 0:00:05]} 56. Kc6 {[%clk 0:00:11]}  Kh6 {[%clk 0:00:05]} 57. Kxb6 {[%clk 0:00:11]}  Kg5 {[%clk 0:00:06]} 58. Kb5 {[%clk 0:00:12]}  Kh6 {[%clk 0:00:06]} 59. Ka4 {[%clk 0:00:13]}  Kg5 {[%clk 0:00:05]} 60. a3 {[%clk 0:00:13]}  Bc3 {[%clk 0:00:05]} 61. Kb5 {[%clk 0:00:14]}  Bb2 {[%clk 0:00:05]} 62. Kxc5 {[%clk 0:00:13]}  Bxa3+ {[%clk 0:00:06]} 63. Kb5 {[%clk 0:00:12]}  Bb4 {[%clk 0:00:07]} 64. c5 {[%clk 0:00:13]}  Kf6 {[%clk 0:00:06]} 65. c6 {[%clk 0:00:13]}  Ke7 {[%clk 0:00:06]} 66. h6 {[%clk 0:00:13]}  Kd8 {[%clk 0:00:06]} 67. h7 {[%clk 0:00:14]}  Bc3 {[%clk 0:00:06]} 68. Kb6 {[%clk 0:00:13]}  Be5 {[%clk 0:00:03]} 69. Kb7 {[%clk 0:00:12]} 1-0


[Site "https://www.chess.com"]

[Event "Titled Tuesday Blitz March 01 Early 2022"]
[White "Yushko, Olga"]
[Black "Derraugh, Geordie"]
[WhiteFideId "14114500"]
[BlackFideId "2603950"]
[WhiteElo "2028"]
[BlackElo "2116"]
[Result "0-1"]
[Round "03"]
[TimeControl "180+1"]
[Date "2022.03.01"]
[WhiteClock "0:01:13"]
[BlackClock "0:00:33"]

1. d4 {[%clk 0:03:00]}  Nf6 {[%clk 0:02:59]} 2. c4 {[%clk 0:03:00]}  e5 {[%clk 0:02:59]} 3. dxe5 {[%clk 0:03:00]}  Ng4 {[%clk 0:03:00]} 4. Nf3 {[%clk 0:03:01]}  Bc5 {[%clk 0:02:59]} 5. e3 {[%clk 0:03:01]}  Nc6 {[%clk 0:02:59]} 6. Be2 {[%clk 0:03:01]}  Ngxe5 {[%clk 0:02:59]} 7. O-O {[%clk 0:03:01]}  O-O {[%clk 0:02:59]} 8. Nc3 {[%clk 0:03:01]}  Re8 {[%clk 0:02:59]} 9. a3 {[%clk 0:03:01]}  a5 {[%clk 0:02:57]} 10. Qc2 {[%clk 0:03:00]}  Ra6 {[%clk 0:02:56]} 11. Rd1 {[%clk 0:02:57]}  Nxf3+ {[%clk 0:02:55]} 12. Bxf3 {[%clk 0:02:57]}  Ne5 {[%clk 0:02:56]} 13. Be2 {[%clk 0:02:57]}  Rg6 {[%clk 0:02:55]} 14. Ne4 {[%clk 0:02:53]}  Bf8 {[%clk 0:02:47]} 15. Ng3 {[%clk 0:02:53]}  d6 {[%clk 0:02:42]} 16. b4 {[%clk 0:02:52]}  axb4 {[%clk 0:02:41]} 17. axb4 {[%clk 0:02:51]}  Bg4 {[%clk 0:02:41]} 18. Bb2 {[%clk 0:02:47]}  Qh4 {[%clk 0:02:34]} 19. c5 {[%clk 0:02:25]}  Bxe2 {[%clk 0:02:29]} 20. Qxe2 {[%clk 0:02:24]}  Ng4 {[%clk 0:02:29]} 21. h3 {[%clk 0:02:24]}  Nxe3 {[%clk 0:02:19]} 22. Rd4 {[%clk 0:02:14]}  Qd8 {[%clk 0:01:49]} 23. fxe3 {[%clk 0:02:08]}  Rxg3 {[%clk 0:01:49]} 24. Rg4 {[%clk 0:02:09]}  Rexe3 {[%clk 0:01:38]} 25. Qf2 {[%clk 0:01:59]}  Rxg4 {[%clk 0:01:37]} 26. Qxe3 {[%clk 0:01:58]}  Rxb4 {[%clk 0:01:35]} 27. Bc3 {[%clk 0:01:55]}  Rc4 {[%clk 0:01:30]} 28. cxd6 {[%clk 0:01:51]}  Qxd6 {[%clk 0:01:29]} 29. Be5 {[%clk 0:01:45]}  Qc5 {[%clk 0:01:25]} 30. Kf2 {[%clk 0:01:35]}  Rc2+ {[%clk 0:01:08]} 31. Kf3 {[%clk 0:01:34]}  Qd5+ {[%clk 0:01:07]} 32. Kg4 {[%clk 0:01:22]}  Rxg2+ {[%clk 0:01:05]} 33. Bg3 {[%clk 0:01:16]}  f5+ {[%clk 0:00:37]} 34. Kh4 {[%clk 0:01:13]}  Qd8+ {[%clk 0:00:33]} 0-1


[Site "https://www.chess.com"]

[Event "Titled Tuesday Blitz March 01 Early 2022"]
[White "Zaksaite, Salomeja"]
[Black "Stepanencu, Nicodim-Cosmin"]
[WhiteFideId "12801496"]
[BlackFideId "1256220"]
[WhiteElo "2002"]
[BlackElo "1809"]
[Result "1-0"]
[Round "03"]
[TimeControl "180+1"]
[Date "2022.03.01"]
[WhiteClock "0:00:02"]
[BlackClock "0:00:13"]

1. e4 {[%clk 0:03:00]}  g6 {[%clk 0:02:56]} 2. d4 {[%clk 0:03:00]}  Bg7 {[%clk 0:02:55]} 3. Nc3 {[%clk 0:02:59]}  d6 {[%clk 0:02:55]} 4. Bc4 {[%clk 0:02:56]}  Nf6 {[%clk 0:02:53]} 5. Qe2 {[%clk 0:02:56]}  Nc6 {[%clk 0:02:52]} 6. e5 {[%clk 0:02:54]}  Nxd4 {[%clk 0:02:51]} 7. exf6 {[%clk 0:02:53]}  Nxe2 {[%clk 0:02:49]} 8. fxg7 {[%clk 0:02:54]}  Rg8 {[%clk 0:02:50]} 9. Ngxe2 {[%clk 0:02:52]}  Rxg7 {[%clk 0:02:44]} 10. Bh6 {[%clk 0:02:51]}  Rg8 {[%clk 0:02:43]} 11. O-O-O {[%clk 0:02:50]}  Be6 {[%clk 0:02:42]} 12. Bxe6 {[%clk 0:02:47]}  fxe6 {[%clk 0:02:43]} 13. f4 {[%clk 0:02:39]}  Qd7 {[%clk 0:02:34]} 14. Rhe1 {[%clk 0:02:37]}  e5 {[%clk 0:02:20]} 15. fxe5 {[%clk 0:02:35]}  g5 {[%clk 0:02:20]} 16. Ng3 {[%clk 0:02:29]}  O-O-O {[%clk 0:02:06]} 17. e6 {[%clk 0:02:22]}  Qe8 {[%clk 0:02:04]} 18. Nf5 {[%clk 0:02:19]}  Rg6 {[%clk 0:01:59]} 19. Nd5 {[%clk 0:02:13]}  Kb8 {[%clk 0:01:57]} 20. h4 {[%clk 0:01:00]}  c6 {[%clk 0:00:54]} 21. Ndxe7 {[%clk 0:00:45]}  Rxh6 {[%clk 0:00:53]} 22. Nxh6 {[%clk 0:00:12]}  Qxe7 {[%clk 0:00:53]} 23. Nf7 {[%clk 0:00:11]}  Rf8 {[%clk 0:00:43]} 24. hxg5 {[%clk 0:00:11]}  d5 {[%clk 0:00:37]} 25. Re2 {[%clk 0:00:09]}  Rxf7 {[%clk 0:00:22]} 26. exf7 {[%clk 0:00:08]}  Qxf7 {[%clk 0:00:23]} 27. Rde1 {[%clk 0:00:08]}  a6 {[%clk 0:00:23]} 28. Re8+ {[%clk 0:00:08]}  Ka7 {[%clk 0:00:24]} 29. R8e7 {[%clk 0:00:07]}  Qf4+ {[%clk 0:00:24]} 30. Kb1 {[%clk 0:00:07]}  Qg3 {[%clk 0:00:23]} 31. a3 {[%clk 0:00:06]}  a5 {[%clk 0:00:20]} 32. R1e6 {[%clk 0:00:05]}  Qxg5 {[%clk 0:00:16]} 33. Rxh7 {[%clk 0:00:04]}  Qxg2 {[%clk 0:00:14]} 34. Rxc6 {[%clk 0:00:03]}  Qf1+ {[%clk 0:00:14]} 35. Ka2 {[%clk 0:00:03]}  Qf5 {[%clk 0:00:14]} 36. Rcc7 {[%clk 0:00:02]}  Ka6 {[%clk 0:00:12]} 37. Rxb7 {[%clk 0:00:03]}  Qxc2 {[%clk 0:00:11]} 38. Ra7+ {[%clk 0:00:02]}  Kb5 {[%clk 0:00:12]} 39. Rhb7+ {[%clk 0:00:03]}  Ka4 {[%clk 0:00:13]} 40. Rb4# {[%clk 0:00:02]} 1-0


[Site "https://www.chess.com"]

[Event "Titled Tuesday Blitz March 01 Early 2022"]
[White "Zhigalko, Sergei"]
[Black "Roberson, Peter T"]
[WhiteFideId "13502956"]
[BlackFideId "412384"]
[WhiteElo "2662"]
[BlackElo "2346"]
[Result "1-0"]
[Round "03"]
[TimeControl "180+1"]
[Date "2022.03.01"]
[WhiteClock "0:00:21"]
[BlackClock "0:00:05"]

1. e4 {[%clk 0:03:00]}  c5 {[%clk 0:02:53]} 2. Nf3 {[%clk 0:03:00]}  a6 {[%clk 0:02:53]} 3. c3 {[%clk 0:03:01]}  e6 {[%clk 0:02:52]} 4. d4 {[%clk 0:03:01]}  d5 {[%clk 0:02:53]} 5. e5 {[%clk 0:03:01]}  Bd7 {[%clk 0:02:53]} 6. Bd3 {[%clk 0:03:01]}  Bb5 {[%clk 0:02:53]} 7. Bc2 {[%clk 0:02:51]}  a5 {[%clk 0:02:47]} 8. a4 {[%clk 0:02:50]}  Ba6 {[%clk 0:02:48]} 9. Na3 {[%clk 0:02:51]}  Nc6 {[%clk 0:02:47]} 10. Nb5 {[%clk 0:02:48]}  cxd4 {[%clk 0:02:37]} 11. Nfxd4 {[%clk 0:02:39]}  Nxd4 {[%clk 0:02:21]} 12. Qxd4 {[%clk 0:02:35]}  Rc8 {[%clk 0:02:17]} 13. O-O {[%clk 0:02:31]}  b6 {[%clk 0:02:04]} 14. Bd3 {[%clk 0:01:46]}  Bc5 {[%clk 0:02:03]} 15. Qg4 {[%clk 0:01:46]}  Kf8 {[%clk 0:02:03]} 16. Bg5 {[%clk 0:01:34]}  Ne7 {[%clk 0:01:59]} 17. Kh1 {[%clk 0:01:30]}  h6 {[%clk 0:01:58]} 18. Bd2 {[%clk 0:01:24]}  Bxb5 {[%clk 0:01:52]} 19. axb5 {[%clk 0:01:21]}  Qd7 {[%clk 0:01:49]} 20. b4 {[%clk 0:01:15]}  h5 {[%clk 0:01:39]} 21. Qh4 {[%clk 0:01:06]}  Nf5 {[%clk 0:01:25]} 22. Bxf5 {[%clk 0:01:06]}  Be7 {[%clk 0:01:24]} 23. Bg5 {[%clk 0:00:52]}  exf5 {[%clk 0:01:20]} 24. bxa5 {[%clk 0:00:52]}  Bxg5 {[%clk 0:01:10]} 25. Qxg5 {[%clk 0:00:52]}  Qxb5 {[%clk 0:01:11]} 26. Qxf5 {[%clk 0:00:49]}  Rxc3 {[%clk 0:01:01]} 27. a6 {[%clk 0:00:24]}  Ke7 {[%clk 0:01:01]} 28. Qg5+ {[%clk 0:00:24]}  Kd7 {[%clk 0:00:13]} 29. Qxg7 {[%clk 0:00:23]}  Re8 {[%clk 0:00:14]} 30. e6+ {[%clk 0:00:22]}  Rxe6 {[%clk 0:00:09]} 31. Qxc3 {[%clk 0:00:23]}  Rc6 {[%clk 0:00:10]} 32. Qh3+ {[%clk 0:00:21]}  Kc7 {[%clk 0:00:09]} 33. a7 {[%clk 0:00:22]}  Rc1 {[%clk 0:00:05]} 34. Rfxc1+ {[%clk 0:00:21]} 1-0


[Site "https://www.chess.com"]

[Event "Titled Tuesday Blitz March 01 Early 2022"]
[White "Zierk, Steven"]
[Black "Seo, Jung Min"]
[WhiteFideId "2034255"]
[BlackFideId "1734687"]
[WhiteElo "2494"]
[BlackElo "2401"]
[Result "0-1"]
[Round "03"]
[TimeControl "180+1"]
[Date "2022.03.01"]
[WhiteClock "0:00:41"]
[BlackClock "0:01:31"]

1. b3 {[%clk 0:02:59]}  b6 {[%clk 0:02:58]} 2. e4 {[%clk 0:02:58]}  e5 {[%clk 0:02:57]} 3. Nf3 {[%clk 0:02:58]}  Nc6 {[%clk 0:02:55]} 4. Bc4 {[%clk 0:02:58]}  Bb7 {[%clk 0:02:52]} 5. O-O {[%clk 0:02:52]}  Be7 {[%clk 0:02:48]} 6. d4 {[%clk 0:02:46]}  exd4 {[%clk 0:02:47]} 7. Nxd4 {[%clk 0:02:47]}  Nf6 {[%clk 0:02:44]} 8. Nxc6 {[%clk 0:02:32]}  dxc6 {[%clk 0:02:42]} 9. f3 {[%clk 0:02:23]}  Qxd1 {[%clk 0:02:40]} 10. Rxd1 {[%clk 0:02:23]}  O-O {[%clk 0:02:41]} 11. Bf4 {[%clk 0:02:19]}  Rad8 {[%clk 0:02:35]} 12. Nc3 {[%clk 0:02:13]}  Bc5+ {[%clk 0:02:17]} 13. Kf1 {[%clk 0:02:03]}  Bd4 {[%clk 0:02:16]} 14. Bd2 {[%clk 0:01:23]}  Be5 {[%clk 0:02:07]} 15. g3 {[%clk 0:01:17]}  Rxd2 {[%clk 0:02:05]} 16. Rxd2 {[%clk 0:01:17]}  Bxc3 {[%clk 0:02:05]} 17. Rad1 {[%clk 0:01:17]}  Bxd2 {[%clk 0:02:04]} 18. Rxd2 {[%clk 0:01:18]}  Re8 {[%clk 0:02:02]} 19. g4 {[%clk 0:01:13]}  Bc8 {[%clk 0:01:55]} 20. h4 {[%clk 0:01:11]}  Kf8 {[%clk 0:01:54]} 21. Kg2 {[%clk 0:01:08]}  Ke7 {[%clk 0:01:53]} 22. g5 {[%clk 0:01:02]}  Nh5 {[%clk 0:01:52]} 23. Kf2 {[%clk 0:01:01]}  Be6 {[%clk 0:01:49]} 24. Bf1 {[%clk 0:00:57]}  Rd8 {[%clk 0:01:48]} 25. Rxd8 {[%clk 0:00:55]}  Kxd8 {[%clk 0:01:48]} 26. Ke3 {[%clk 0:00:56]}  Ke7 {[%clk 0:01:43]} 27. f4 {[%clk 0:00:56]}  f5 {[%clk 0:01:39]} 28. gxf6+ {[%clk 0:00:46]}  gxf6 {[%clk 0:01:36]} 29. Kf3 {[%clk 0:00:44]}  f5 {[%clk 0:01:35]} 30. Bd3 {[%clk 0:00:41]}  fxe4+ {[%clk 0:01:31]} 31. Bxe4 {[%clk 0:00:41]}  Bd5 {[%clk 0:01:31]} 0-1


[Site "https://www.chess.com"]